Cogmind - Beta 16 @@@ ROGUE MODE // 2026.01.03 @ 00:55:12 Player: KZ_RAD Result: Destroyed by Y-45 Defender with Beam Rifle Performance ------------- Evolutions (2) 1000 Regions Visited (3) 600 Robots Destroyed (32) 160 Value Destroyed (746) 746 Prototype IDs (1) 20 Alien Tech Used (0) 0 Bonus (0) 0 TOTAL SCORE: 2526 Bonus ------- None Cogmind --------- Core Integrity 0/550 Matter 210/300 Energy 100/100 System Corruption 0% Temperature Cool (9) Movement Core (200) Ox3 Location -8/Materials Parts ------- > --- POWER (1) -------- (None) > --- PROPULSION (4) --- (None) > --- UTILITY (4) ------ Advanced Heat Sink Medium Storage Unit Improved Targeting Computer Hacking Suite > --- WEAPON (2) ------- (None) > --- INVENTORY (10) --- Ion Engine Peak State ------------ > --- POWER ------------ Heavy Ion Engine > --- PROPULSION ------- Improved Aluminum Leg Carbon-fiber Leg > --- UTILITY ---------- Medium Storage Unit Signal Interpreter Hacking Suite Tractor Beam > --- WEAPON ----------- Improved Light Cannon Improved Light Cannon > --- INVENTORY -------- Ion Engine Improved Targeting Computer [Rating: 18] Favorites ----------- Power Ion Engine Engine Ion Engine Propulsion Aluminum Leg Leg Aluminum Leg Utility Tractor Beam Device Tractor Beam Storage Medium Storage Unit Processor Improved Targeting Computer Hackware Hacking Suite Weapon Improved Light Cannon Energy Gun Medium Laser Ballistic Gun High-powered Shotgun Ballistic Cannon Improved Light Cannon Launcher Improved Grenade Launcher Build | -11 -10 -9 -8 ------- Run | Yrd Mat Mat Mat Slots Evolved 4 | . . 2 2 Power . | . . . . Propulsion 2 | . . 1 1 Utility 2 | . . 1 1 Weapon . | . . . . Parts Attached 29 | 5 7 6 11 Power 4 | 1 1 2 . Engine 4 | 1 1 2 . Core . | . . . . Reactor . | . . . . Propulsion 7 | 2 2 2 1 Treads . | . . . . Leg 7 | 2 2 2 1 Wheel . | . . . . Hover . | . . . . Flight . | . . . . Utility 8 | . 2 2 4 Device 3 | . 1 1 1 Storage 2 | . 1 1 . Processor 2 | . . . 2 Hackware 1 | . . . 1 Protection . | . . . . Artifact . | . . . . Weapon 10 | 2 2 . 6 Energy Gun 2 | 2 . . . Energy Cannon . | . . . . Ballistic Gun 1 | . . . 1 Ballistic Cannon 4 | . 2 . 2 Launcher 3 | . . . 3 Special Weapon . | . . . . Impact Weapon . | . . . . Slashing Weapon . | . . . . Piercing Weapon . | . . . . Special Melee Weapon . | . . . . Unidentified Prototypes 1 | . . 1 . Parts Lost 18 | . 2 1 15 Power 1 | . . . 1 Propulsion 7 | . 2 1 4 Utility 2 | . . . 2 Weapon 8 | . . . 8 Highest Loss Streak 12 | . 2 1 12 To Critical Strikes . | . . . . Average Backups 3 | 1 3 4 1 Power . | . 1 1 1 Propulsion . | . . . . Utility . | . . 1 . Weapon 1 | . 1 2 . Tool/Special . | . . . . Unused Backups . | . . . . Power . | . . . . Propulsion . | . . . . Utility . | . . . . Weapon . | . . . . Tool/Special . | . . . . Average Slot Usage (%) 78 | . 79 96 58 Engine 10 | . 14 11 8 Leg 18 | . 20 29 4 Device 13 | . 8 21 8 Storage 9 | . 8 10 9 Processor 3 | . . . 9 Hackware 2 | . . . 8 Energy Gun 1 | . 4 . . Ballistic Gun 1 | . . . 5 Ballistic Cannon 15 | . 23 21 3 Peak Build Rating 18 | 5 9 14 18 Average Rating 11 | 3 7 11 15 On Entrance 7 | . 5 9 14 Avg Prop Armor Cover (%) . | . . . . Naked Turns . | . . . . Heaviest Build 31 | 9 19 28 31 Greatest Support 33 | 20 20 33 33 Greatest Overweight (x) 10 | . 4 1 10 Average Overweight (x) 1 | . . . 4 Largest Inventory Capacity 10 | 5 8 10 10 Average Capacity 8 | 5 6 9 10 Most Carried 6 | 2 5 6 5 Average Carried 3 | 1 3 4 1 Final Capacity 10 | 5 8 10 10 Final Carried 5 | 2 5 5 1 Class Distribution -------------------- 61% | Mutant 38% | Scavenger-Mutant Dominant Class ---------------- Mutant | -10/Materials Scavenger-Mutant | -9/Materials Mutant | -8/Materials Resources | -11 -10 -9 -8 ----------- Run | Yrd Mat Mat Mat Matter Collected 941 | 151 311 236 243 Remotely 559 | . 134 236 189 Salvage Created 724 | . 445 153 126 Parts 48 | . 15 15 18 Haulers Intercepted 1 | . . 1 . Recyclers Shooed 1 | . 1 . . Parts Field Recycled . | . . . . Retrieved Matter . | . . . . Parts Self-Destructed . | . . . . Prevented . | . . . . Parts Restored . | . . . . Kills | -11 -10 -9 -8 ------- Run | Yrd Mat Mat Mat Combat Hostiles Destroyed 25 | . 8 10 7 Guns 6 | . 2 . 4 Cannons 18 | . 6 10 2 AOE 1 | . . . 1 Classes Destroyed 9 | . 3 3 3 Builder 1 | . . . 1 Hauler 1 | . . 1 . Recycler 2 | . 2 . . Operator 1 | . . . 1 Watcher 2 | . 2 . . Swarmer 12 | . . 8 4 Grunt 11 | . 8 1 2 Sentry 1 | . . 1 . Hunter 1 | . . . 1 Best Kill Streak 6 | . 3 6 3 Combat Bots Only 6 | . 2 6 3 Max Kills in Single Turn 2 | . 2 1 2 Gunslinging . | . . . . Exploded 1 | . . . 1 Melee . | . . . . Uniques/NPCs Destroyed . | . . . . Combat | -11 -10 -9 -8 -------- Run | Yrd Mat Mat Mat Hostile Shots Fired 280 | . 63 56 161 Missed 74 | . 17 14 43 Hits 206 | . 46 42 118 Projectile 206 | . 46 42 118 Critical Strikes 6 | . . . 6 Damage Taken 2785 | . 577 392 1816 Core 844 | . 193 95 556 Absorbed by Shields . | . . . . Core Remaining (%) 66 | 100 22 76 . Volleys Fired 98 | . 29 29 40 Largest 2 | . 2 2 2 Hottest 100 | . 100 66 72 Shots Fired 166 | . 58 58 50 Gun 31 | . 20 . 11 Cannon 132 | . 38 58 36 Launcher 3 | . . . 3 Special . | . . . . Kinetic 143 | . 38 58 47 Thermal 20 | . 20 . . Explosive 3 | . . . 3 Electromagnetic . | . . . . Robot Hit Streak 6 | . 6 5 6 Robot Miss Streak 5 | . 5 3 3 Penetration Max . | . . . . Secondary Targets 1 | . 1 . . Max Gunslinging Chain 1 | . 1 . . Shots Hit Robots 99 | . 34 32 33 Core Hits 43 | . 16 11 16 Critical Kills . | . . . . Critical Parts Destroyed . | . . . . Critical Strikes 5 | . 2 1 2 Blast 5 | . 2 1 2 Melee Attacks . | . . . . Impact . | . . . . Slashing . | . . . . Piercing . | . . . . Sneak Attacks . | . . . . Combat Hostiles . | . . . . Follow-up Attacks . | . . . . Damage Inflicted 2327 | . 667 698 962 Guns 361 | . 190 . 171 Cannons 1641 | . 477 698 466 Explosions 325 | . . . 325 Melee . | . . . . Ramming . | . . . . Kinetic 1812 | . 477 698 637 Thermal 190 | . 190 . . Explosive 325 | . . . 325 Electromagnetic . | . . . . Impact . | . . . . Slashing . | . . . . Piercing . | . . . . Highest Corruption . | . . . . Average Corruption . | . . . . Corruption Purged . | . . . . Corruption Blocked . | . . . . Overload Shots . | . . . . Overflow Damage 46 | . 21 . 25 Projectiles 21 | . 21 . . Explosions 25 | . . . 25 Melee . | . . . . Knockbacks 21 | . 8 7 6 Impact . | . . . . Kinetic 20 | . 7 7 6 Secondary 1 | . 1 . . Self-Inflicted Damage 120 | . . . 120 Shots 3 | . . . 3 Rammed . | . . . . Targets Rammed . | . . . . Kicked . | . . . . Crushed . | . . . . Highest Temperature 518 | . 518 42 24 Average Temperature 111 | . 159 20 10 Received Heat Transfer 975 | . 324 57 594 Effects 10 | . 10 . . Shutdowns 4 | . 4 . . Energy Bleed 1 | . 1 . . Interference 2 | . 2 . . Damage (minor) 3 | . 3 . . Siege Activations . | . . . . Martial Activations . | . . . . Shielding Activations . | . . . . Robots Disrupted . | . . . . Combat Hostiles . | . . . . Robots Corrupted . | . . . . Combat Hostiles . | . . . . Parts Fried . | . . . . Impact Corruptions . | . . . . Robots Melted . | . . . . Combat Hostiles . | . . . . Parts Melted 2 | . 2 . . Heat Transferred 555 | . 555 . . Parts Sabotaged . | . . . . Parts Stolen . | . . . . Parts Stripped . | . . . . Power Chain Reactions . | . . . . Alert | -11 -10 -9 -8 ------- Run | Yrd Mat Mat Mat Maximum Alert Level . | . . . . Low Security (%) 100 | 100 100 100 100 Level 1 . | . . . . Level 2 . | . . . . Level 3 . | . . . . Level 4 . | . . . . Level 5 . | . . . . High Security . | . . . . Max Security . | . . . . Peak Influence 183 | . 81 183 71 Initial 51 | . . 18 51 Average 56 | . 40 105 20 Influence Increases 782 | . 224 328 230 Destroy 0b10 Robot/C 500 | . 160 200 140 Destroy 0b10 Robot/NC 35 | . 20 5 10 Destroy Leader 116 | . 34 52 30 Successful Hack 13 | . 5 7 1 Disable Machine 45 | . . 45 . Destroy Structure 28 | . 5 4 19 Lose Combat Pursuer 45 | . . 15 30 Influence Decreases 782 | . 180 250 352 Entered New Map 97 | . . 26 71 Time Decay 527 | . 160 214 153 Lost Part 107 | . 20 10 77 Purge Threat 51 | . . . 51 Squads Dispatched 3 | . 2 1 . Investigation . | . . . . Extermination . | . . . . Reinforcement 3 | . 2 1 . Assault . | . . . . Garrison . | . . . . Intercept . | . . . . Searches Triggered . | . . . . Construction Impeded . | . . . . Haulers Reinforced . | . . . . Active Scanning Responses . | . . . . Cargo Convoy Interrupts . | . . . . Stealth | -11 -10 -9 -8 --------- Run | Yrd Mat Mat Mat Distress Signals 6 | . 1 1 4 Communications Jammed . | . . . . Distress Signals . | . . . . Times Spotted 48 | . 15 14 19 Peak Tracking Total 5 | . 5 5 5 Tactical Retreats 3 | . . 1 2 Traps | -11 -10 -9 -8 ------- Run | Yrd Mat Mat Mat Traps Triggered 1 | . . 1 . Indirectly . | . . . . Trap Hack Attempts . | . . . . Triggered . | . . . . Disarmed . | . . . . Reprogrammed . | . . . . Reused . | . . . . Traps Extracted . | . . . . Installed . | . . . . Triggered . | . . . . Machines | -11 -10 -9 -8 ---------- Run | Yrd Mat Mat Mat Machines Disabled 3 | . . 3 . Max in Single Turn 1 | . . 1 . Machines Repaired . | . . . . Machines Dismantled . | . . . . Machines Sabotaged . | . . . . Overloaded Fab Kills . | . . . . Hacking | -11 -10 -9 -8 --------- Run | Yrd Mat Mat Mat Machines Accessed 10 | . 3 3 4 Terminals 7 | . 3 1 3 Fabricators . | . . . . Repair Stations . | . . . . Recycling Units 2 | . . 2 . Scanalyzers 1 | . . . 1 Garrison Access . | . . . . Total Hacks 29 | . 11 6 12 Successful 13 | . 2 4 7 Failed 16 | . 9 2 5 Catastrophic 1 | . 1 . . Database Lockouts . | . . . . Manual . | . . . . Terminals 20 | . 11 1 8 Fabricators . | . . . . Repair Stations . | . . . . Recycling Units 5 | . . 5 . Scanalyzers 4 | . . . 4 Garrison Access . | . . . . Terminal Hacks 6 | . 2 1 3 Record 1 | . . . 1 Robot Analysis 1 | . 1 . . Scanalyzer Index 1 | . . 1 . Unreport Threat 1 | . . . 1 Investigation Status 1 | . 1 . . Zone Layout 1 | . . . 1 Fabricator Hacks . | . . . . Repair Station Hacks . | . . . . Recycling Unit Hacks 3 | . . 3 . Report Inventory 1 | . . 1 . Retrieve Matter 2 | . . 2 . Scanalyzer 4 | . . . 4 Insert Component 1 | . . . 1 Analyze 1 | . . . 1 Retrieve Study 2 | . . . 2 Garrison Access Hacks . | . . . . Unauthorized Hacks . | . . . . Terminals . | . . . . Fabricators . | . . . . Repair Stations . | . . . . Recycling Units . | . . . . Scanalyzers . | . . . . Garrison Access . | . . . . Data Cores Recovered 1 | . . . 1 Used . | . . . . Hacking Detections 9 | . 3 2 4 Full Trace Events 2 | . 1 . 1 Feedback Events . | . . . . Feedback Blocked . | . . . . Robot Schematics Acquired . | . . . . Robots Built . | . . . . Authchips . | . . . . Time . | . . . . Total Robot Build Rating . | . . . . Part Schematics Acquired 1 | . . . 1 Parts Built . | . . . . Authchips . | . . . . Time . | . . . . Total Part Build Rating . | . . . . Part Studies Acquired 2 | . . . 2 Parts Repaired . | . . . . Time . | . . . . Parts Recycled . | . . . . Recycled Matter . | . . . . Retrieved Matter . | . . . . Retrieved Components . | . . . . Parts Scanalyzed 1 | . . . 1 Part Schematics Acquired 1 | . . . 1 Parts Damaged . | . . . . Bothacking | -11 -10 -9 -8 ------------ Run | Yrd Mat Mat Mat Used RIF Installer . | . . . . Robots Hacked . | . . . . Non-combat . | . . . . Combat . | . . . . Robot Hacks Applied . | . . . . Relay Couplers Released . | . . . . Fabnet Peak Effective % . | . . . . Robots Rewired . | . . . . Allies Hacked . | . . . . Hacks Repelled . | . . . . Allies | -11 -10 -9 -8 -------- Run | Yrd Mat Mat Mat Total Allies . | . . . . Largest Group . | . . . . Highest-Rated Group . | . . . . Highest-Rated Ally . | . . . . Total Orders . | . . . . Ally Attacks . | . . . . Total Damage . | . . . . Kills . | . . . . Allies Corrupted . | . . . . Allies Melted . | . . . . Intel | -11 -10 -9 -8 ------- Run | Yrd Mat Mat Mat Active Infowar (turns) 539 | . . 527 12 Sensors 539 | . . 527 12 Robot Analysis Total 1 | . 1 . . Derelict Logs Recovered . | . . . . Drone Launches . | . . . . Drone Recoveries . | . . . . Exploration | -11 -10 -9 -8 ------------- Run | Yrd Mat Mat Mat Turns Passed 1401 | 48 353 528 472 Spaces Moved 632 | 34 170 313 115 Core 113 | 6 24 . 83 Treads . | . . . . Legs 519 | 28 146 313 32 Wheels . | . . . . Hover . | . . . . Flight . | . . . . Fastest Speed 50 | 50 120 120 120 Average Speed 167 | 107 140 134 316 Slowest Speed 550 | 120 250 190 550 Overloaded Moves . | . . . . Propulsion Burnouts . | . . . . Robots Hopped . | . . . . Potential Cave-ins . | . . . . Cave-ins Triggered . | . . . . Exploration Rate (%) 23 | 3 39 33 18 Regions Visited 3 Branch Regions . Pre-discovered Areas . | . . . . Known Exits Taken . | . . . . Unknown Exits Taken 3 | 1 1 1 . Scrap Searched . | . . . . Spaces Dug . | . . . . Terrain Destroyed 24 | . 3 3 18 Melee . | . . . . Projectile 8 | . 3 3 2 AOE 16 | . . . 16 Terrain Rammed . | . . . . Walls Destroyed . | . . . . Machines Disabled . | . . . . Actions | -11 -10 -9 -8 --------- Run | Yrd Mat Mat Mat Total 807 | 45 226 362 174 Wait 10 | . 10 . . Move 629 | 33 169 312 115 Hop . | . . . . Pick Up 32 | 7 9 9 7 Fast Attach . | . . . . Attach 29 | 5 6 7 11 Detach . | . . . . Swap 2 | . 1 1 . Drop 7 | . 2 4 1 Fire 98 | . 29 29 40 Melee . | . . . . Ram . | . . . . Kick . | . . . . Crush . | . . . . Escape Stasis . | . . . . Rewire . | . . . . Trap . | . . . . Miscellaneous . | . . . . Route ------- -11/Scrapyard -10/Materials -9/Materials (discovered 2 exits: *Mat / [*Min]) -8/Materials History --------- Turn | Location | Event 9 | -11/Scrapyard | Discovered new exit (range 16) 49 | -11/Scrapyard | Entered Materials 101 | -10/Materials | Core integrity fell below 50% 312 | -10/Materials | Build established: Mutant 350 | -10/Materials | Discovered new exit (range 14) 402 | -10/Materials | Entered another Materials area 402 | -9/Materials | Evolved 2 slots: Propulsion x1, Utility x1 701 | -9/Materials | Build established: Scavenger-Mutant 764 | -9/Materials | Discovered new exit (range 7) 918 | -9/Materials | Discovered new exit (range 3) 930 | -9/Materials | Entered another Materials area 930 | -8/Materials | Evolved 2 slots: Propulsion x1, Utility x1 1052 | -8/Materials | Core integrity fell below 50% 1119 | -8/Materials | Lost 12 parts (4n1u7w) 1248 | -8/Materials | Core integrity fell below 20% 1285 | -8/Materials | Build established: Mutant 1402 | -8/Materials | Destroyed by Y-45 Defender with Beam Rifle Last Messages --------------- R-06 Scavenger collects Lgt. Ion Engine. Acquired 9 matter. R-06 Scavenger collects Lgt. Assault Rifle. R-06 Scavenger collects Flight Unit. Acquired 16 matter. Acquired 17 matter. S-10 Pest destroyed. R-06 Scavenger collects Lgt. Ion Engine. Acquired 9 matter. Connecting with Terminal... >>Query(Storage) Holding area for both raw materials and components based on old technology. Connecting with Terminal... >>Layout(Zone) Retrieving Zone 4H layout... Downloaded map data. W-25 Informer sends out distress signal. Hvy. Ion Engine destroyed. Hpw. Shotgun+ destroyed. Map ----- +----------------------------------------------------+ | ??????????## #### "" ##???????????? | | ???????????## " +??????????? | | ????????????# #### #??????????? | | ????????????##/#####??############ #??????????? | | ?????????????# #??????????????????????????????? | | ?????????????# #??????????????????????????????? | | ?????????????# #??????????????????????????????? | | ?????????????# #??????????????????????????????? | | ?????????????# #??????????????????????????????? | | ?????????????# #??????????????????????????????? | | ?????######### #??????????????????????????????? | | ?????# "" ## #######+####+??????????????????? | | ?????# ""S ## #?????????????????? | | ?????#! "" # + ????????????????? | | ?????# # #?????????????????? | | ?????# ! ! + #?????????????????? | | ?????# # #?????????????????? | | ?????####+### #?????????????????? | | ???????# """ """ +?????????????????? | | ???????# """ """ #?????????????????? | | ?????####+### """ """ #?????????????????? | | ?????# # """ """ #########?????????? | | ?????# """ # """ """ k ?????????? | | ?????# """ # g mY ?????????? | | ?????# """ # #????????????? | | ?????# + @ w #????????????? | | ?????# ] # ########### +????????????? | | ?????###+#### #????#??????????? #????????????? | | ???????# #????#?????????????????????????? | | ???????# #????#?????????????????????????? | | ???????# ##+########?????????????????????????? | | ?????### ## """ #?????????????????????????? | | ????##T# ## "Y" #?????????????????????????? | | ????# ## #?????????????????????????? | | ????# + ! #?????????????????????????? | | ????###+#"## [ #??????????????H??????????? | | ????# # """ #?????????????????????????? | | ????#" """ # """ #?????????????????????????? | | ????#T """ # """ #?????????????????????????? | | ????#" """ # =#?????????????????????????? | | ????# ##########?????????????????????????? | | ????# #??????????????????????????????????? | | ????########??????????????????????????????????? | | ??????????????????????????????????????????????? | | ??????????????????????????????????????????????? | | | | | | | | | | | +----------------------------------------------------+ Best States ------------- Heat Dissipation 50 Energy Generation 14 Energy Capacity 280 Matter Stores 300 Matter Capacity 300 Sight Range 16 Robot Scan Range 14 Terrain Scan Density 10 Evasion (%) 55 Targeting Accuracy 6 Offensive Hacking 10 Item Schematics ----------------- Ion Engine | -8/Materials | Scanalyzed Robot Schematics ------------------ None Fabricated ------------ Nothing Repaired ---------- Nothing Studied --------- Hpw. Shotgun | -8/Materials | Hacked Ion Engine | -8/Materials | Hacked Alien Tech Used ----------------- None Achievements -------------- Bumper Bots Hydra Let's See Who's Tougher Challenges ------------ None Game ------ Seed ReactionHybridMicrothruster Manual? 0 Play Time 00:20:49 Cumulative 5.9 hours Start 2026.01.03 @ 00:36:40 End 2026.01.03 @ 00:55:12 Sessions 1 Manual Loads 0 Difficulty Rogue Special Mode None Game No. 16 Rogue 16 Adventurer 0 Explorer 0 Win Type - Total 0 Types 0/0/0/0/0/0/0/0/0/0 Lore% 5 Gallery% 9 Achievement% 10 Wizard Run 0 Options --------- Layout 1 ASCII 0 Keyboard 0 Movement Mouse Keybinds 0 Fullscreen 1 Font 32/SmallcapsGlow Map View 50x35 Zoom Use 0% Tactical HUD 0 Map Filters NONE Filters NONE Steam 1 RUN: 33ee77f0-3208-44b3-8e31-1969fa34e7be